[Event "II Cerrado Promocion FNA 2022"]
[Site "Pamplona"]
[Date "2022.01.03"]
[Round "2.4"]
[White "Labiano Hernandez, Juan"]
[Black "Minzer, Claudio Javier"]
[Result "1/2-1/2"]
[ECO "B53"]
[WhiteElo "2210"]
[BlackElo "2442"]
[Annotator "ChessBase"]
[PlyCount "191"]
[EventDate "2022.01.02"]
[EventType "tourn"]
[EventCountry "ESP"]
[SourceTitle "playchess.com"]
[Source "ChessBase"]
[SourceQuality "1"]
[TimeControl "5400+30"]

1. e4 {[%emt 0:00:02]} c5 {[%emt 0:03:27]} 2. Nf3 {[%emt 0:00:09]} Nc6 {[%emt 0:00:26]} 3. Bb5 {[%emt 0:00:06]} d6 {[%emt 0:00:04]} 4. d4 {[%emt 0:00:52]} cxd4 {[%emt 0:00:05]} 5. Qxd4 {[%emt 0:00:15]} Bd7 {[%emt 0:00:13]} 6. Bxc6 {[%emt 0:00:34]} Bxc6 {[%emt 0:00:05]} 7. c4 {[%emt 0:01:18]} f5 {[%emt 0:01:20]} 8. exf5 {[%emt 0:05:42]} Qa5+ {[%emt 0:00:04]} 9. Nc3 {[%emt 0:00:42]} Qxf5 {[%emt 0:00:08]} 10. Nd5 {[%emt 0:11:49]} e5 {[%emt 0:01:49]} 11. Qd1 {[%emt 0:03:45]} Rc8 {[%emt 0:00:40]} 12. O-O {[%emt 0:00:39]} Nf6 {[%emt 0:01:36]} 13. Re1 {[%emt 0:01:23]} Be7 {[%emt 0:11:39]} 14. Nd4 {[%emt 0:03:58]} Qd7 {[%emt 0:07:16]} 15. Nxe7 {[%emt 0:01:28]} Kxe7 {[%emt 0:00:27]} 16. Bg5 {[%emt 0:05:31]} h6 {[%emt 0:05:00]} 17. Bxf6+ {[%emt 0:01:32]} gxf6 {[%emt 0:00:06]} 18. Qd3 {[%emt 0:04:37]} Rcg8 {[%emt 0:10:05]} 19. Nf5+ {[%emt 0:03:35]} Qxf5 {[%emt 0:15:45]} 20. Qxf5 {[%emt 0:00:01]} Bxg2 {[%emt 0:00:09]} 21. Qd3 {[%emt 0:00:39]} Be4+ {[%emt 0:04:39]} 22. Qg3 {[%emt 0:00:06]} f5 {[%emt 0:00:14]} 23. c5 {[%emt 0:04:40]} d5 {[%emt 0:08:42]} 24. f3 {[%emt 0:01:25]} Bxf3 {[%emt 0:02:39]} 25. Rxe5+ {[%emt 0:00:08]} Kf6 {[%emt 0:00:07]} 26. Re3 {[%emt 0:00:47]} Rxg3+ {[%emt 0:02:16]} 27. hxg3 {[%emt 0:00:06]} Be4 {[%emt 0:00:11]} 28. Rd1 {[%emt 0:02:35]} Ke5 {[%emt 0:01:05]} 29. Ra3 {[%emt 0:01:13]} a6 {[%emt 0:00:42]} 30. Rb3 {[%emt 0:01:56]} d4 {[%emt 0:01:30]} 31. Rb4 {[%emt 0:00:36]} d3 {[%emt 0:00:53]} 32. Rb6 {[%emt 0:03:13]} h5 {[%emt 0:01:21]} 33. Rd6 {[%emt 0:00:23]} h4 {[%emt 0:00:19]} 34. R1xd3 {[%emt 0:00:29]} hxg3 {[%emt 0:01:34]} 35. Rxg3 {[%emt 0:00:02]} Rh1+ {[%emt 0:00:09]} 36. Kf2 {[%emt 0:00:05]} Rh2+ {[%emt 0:00:05]} 37. Ke1 {[%emt 0:00:34]} Rxb2 {[%emt 0:00:06]} 38. Rd2 {[%emt 0:00:06]} Rb1+ {[%emt 0:00:46]} 39. Kf2 {[%emt 0:02:24]} Rc1 {[%emt 0:00:18]} 40. Rb3 {[%emt 0:04:54]} Rxc5 {[%emt 0:00:11]} 41. Re2 {[%emt 0:00:47]} Kf4 {[%emt 0:00:51]} 42. Ke1 {[%emt 0:03:11]} Rc1+ {[%emt 0:00:08]} 43. Kd2 {[%emt 0:00:17]} Rc2+ {[%emt 0:00:17]} 44. Kd1 {[%emt 0:01:06]} Rc7 {[%emt 0:00:24]} 45. Rf2+ {[%emt 0:00:12]} Ke5 {[%emt 0:00:10]} 46. Rh2 {[%emt 0:00:46]} Rg7 {[%emt 0:00:24]} 47. Re2 {[%emt 0:00:51]} Rg1+ {[%emt 0:00:29]} 48. Kd2 {[%emt 0:01:18]} Rg7 {[%emt 0:00:52]} 49. Ke1 {[%emt 0:00:29]} Rc7 {[%emt 0:00:55]} 50. Kd2 {[%emt 0:00:23]} Rc4 {[%emt 0:01:20]} 51. Ke1 {[%emt 0:00:47]} Kf4 {[%emt 0:01:00]} 52. Rf2+ {[%emt 0:00:15]} Ke5 {[%emt 0:00:04]} 53. Kd2 {[%emt 0:01:21]} f4 {[%emt 0:02:05]} 54. a3 {[%emt 0:01:44]} Rd4+ {[%emt 0:01:11]} 55. Ke1 {[%emt 0:02:24]} f3 {[%emt 0:01:36]} 56. Rfxf3 {[%emt 0:02:02]} Bxf3 {[%emt 0:00:08]} 57. Rxf3 {[%emt 0:00:07]} Kd5 {[%emt 0:01:46]} 58. Rc3 {[%emt 0:00:34]} b5 {[%emt 0:00:46]} 59. Ke2 {[%emt 0:00:06]} Rc4 {[%emt 0:00:19]} 60. Rh3 {[%emt 0:00:34]} Kc5 {[%emt 0:00:39]} 61. Kd3 {[%emt 0:01:59]} Kb6 {[%emt 0:00:25]} 62. Rh6+ {[%emt 0:00:34]} Ka5 {[%emt 0:00:07]} 63. Kd2 {[%emt 0:00:51]} Ra4 {[%emt 0:01:08]} 64. Rh3 {[%emt 0:00:07]} Rc4 {[%emt 0:02:55]} 65. Rh6 {[%emt 0:00:13]} Rc8 {[%emt 0:00:15]} 66. Rg6 {[%emt 0:01:19]} Rc4 {[%emt 0:00:40]} 67. Rh6 {[%emt 0:00:14]} Ra4 {[%emt 0:00:21]} 68. Rh3 {[%emt 0:00:35]} Rf4 {[%emt 0:00:00]} 69. Kc2 {[%emt 0:01:39]} Ka4 {[%emt 0:00:00]} 70. Kb2 {[%emt 0:00:13]} Rf2+ {[%emt 0:00:00]} 71. Kb1 {[%emt 0:00:06]} Rd2 {[%emt 0:00:47]} 72. Rg3 {[%emt 0:00:09]} Rd6 {[%emt 0:02:34]} 73. Kb2 {[%emt 0:00:13]} Ka5 {[%emt 0:00:04]} 74. Rg2 {[%emt 0:00:39]} Kb6 {[%emt 0:00:19]} 75. Rc2 {[%emt 0:00:38]} Rd4 {[%emt 0:00:10]} 76. Rh2 {[%emt 0:00:13]} Kc5 {[%emt 0:00:06]} 77. Rc2+ {[%emt 0:00:26]} Rc4 {[%emt 0:00:05]} 78. Rh2 {[%emt 0:00:07]} Re4 {[%emt 0:00:30]} 79. Rc2+ {[%emt 0:00:30]} Kd5 {[%emt 0:00:13]} 80. Rd2+ {[%emt 0:00:11]} Rd4 {[%emt 0:00:04]} 81. Rh2 {[%emt 0:00:05]} a5 {[%emt 0:00:27]} 82. Kc3 {[%emt 0:01:37]} Rc4+ {[%emt 0:00:19]} 83. Kb2 {[%emt 0:00:10]} Rg4 {[%emt 0:00:22]} 84. Rd2+ {[%emt 0:00:24]} Kc4 {[%emt 0:00:24]} 85. Rc2+ {[%emt 0:00:29]} Kd3 {[%emt 0:00:42]} 86. Rc5 {[%emt 0:01:03]} Rg2+ {[%emt 0:00:19]} 87. Kb1 {[%emt 0:00:05]} b4 {[%emt 0:00:15]} 88. axb4 {[%emt 0:00:07]} axb4 {[%emt 0:00:11]} 89. Rc1 {[%emt 0:00:10]} Rd2 {[%emt 0:00:37]} 90. Rh1 {[%emt 0:00:14]} Kc3 {[%emt 0:00:06]} 91. Rh3+ {[%emt 0:00:10]} Kc4 {[%emt 0:00:53]} 92. Rh1 {[%emt 0:00:24]} Kb3 {[%emt 0:00:08]} 93. Rh3+ {[%emt 0:00:06]} Ka4 {[%emt 0:00:03]} 94. Rh1 {[%emt 0:00:09]} Ka3 {[%emt 0:00:06]} 95. Rh3+ {[%emt 0:00:16]} b3 {[%emt 0:00:03]} 96. Rh1 {[%emt 0:00:04]} 1/2-1/2

[Event "II Cerrado Promocion FNA 2022"]
[Site "Pamplona"]
[Date "2022.01.03"]
[Round "2.5"]
[White "Escartin Lacasa, Jose"]
[Black "Pinto, Daniel"]
[Result "0-1"]
[ECO "D11"]
[WhiteElo "2315"]
[BlackElo "2215"]
[Annotator "ChessBase"]
[PlyCount "72"]
[EventDate "2022.01.02"]
[EventType "tourn"]
[EventCountry "ESP"]
[SourceTitle "playchess.com"]
[Source "ChessBase"]
[SourceQuality "1"]
[TimeControl "5400+30"]

1. d4 {[%emt 0:05:35]} Nf6 {[%emt 0:00:27]} 2. Nf3 {[%emt 0:00:06]} d5 {[%emt 0:00:12]} 3. c4 {[%emt 0:00:09]} c6 {[%emt 0:00:16]} 4. e3 {[%emt 0:00:19]} Bg4 {[%emt 0:00:27]} 5. h3 {[%emt 0:02:25]} Bh5 {[%emt 0:00:22]} 6. Qb3 {[%emt 0:00:37]} Qb6 {[%emt 0:00:38]} 7. Nc3 {[%emt 0:10:00]} e6 {[%emt 0:00:46]} 8. c5 {[%emt 0:03:26]} Qc7 {[%emt 0:00:32]} 9. Qa4 {[%emt 0:00:40]} Nbd7 {[%emt 0:04:34]} 10. b4 {[%emt 0:00:27]} Be7 {[%emt 0:00:45]} 11. b5 {[%emt 0:00:58]} O-O {[%emt 0:00:16]} 12. bxc6 {[%emt 0:00:38]} bxc6 {[%emt 0:00:17]} 13. Be2 {[%emt 0:01:11]} e5 {[%emt 0:05:53]} 14. Nh4 {[%emt 0:08:25]} Bxe2 {[%emt 0:13:44]} 15. Nxe2 {[%emt 0:00:02]} Rfe8 {[%emt 0:09:05]} 16. Nf5 {[%emt 0:06:02]} Bf8 {[%emt 0:00:16]} 17. Nfg3 {[%emt 0:01:39]} h5 {[%emt 0:00:57]} 18. h4 {[%emt 0:03:48]} g6 {[%emt 0:13:40]} 19. O-O {[%emt 0:00:52]} e4 {[%emt 0:01:15]} 20. Nf4 {[%emt 0:03:59]} Nh7 {[%emt 0:17:32]} 21. Nge2 {[%emt 0:00:52]} Ndf6 {[%emt 0:00:09]} 22. Nh3 {[%emt 0:06:13]} Ng4 {[%emt 0:00:21]} 23. Nef4 {[%emt 0:02:20]} Bh6 {[%emt 0:01:53]} 24. Bd2 {[%emt 0:00:14]} Bxf4 {[%emt 0:05:42]} 25. Nxf4 {[%emt 0:01:26]} g5 {[%emt 0:00:23]} 26. Ba5 {[%emt 0:05:04]} Qd7 {[%emt 0:01:34]} 27. hxg5 {[%emt 0:00:14]} Nxg5 {[%emt 0:00:07]} 28. Nxh5 {[%emt 0:03:30]} Qe6 {[%emt 0:06:38]} 29. Rfb1 {[%emt 0:03:51]} Qh6 {[%emt 0:00:35]} 30. Nf4 {[%emt 0:00:23]} Rab8 {[%emt 0:00:14]} 31. Qc2 {[%emt 0:01:21]} Nf3+ {[%emt 0:01:27]} 32. Kf1 {[%emt 0:00:45]} Nxd4 {[%emt 0:00:14]} 33. exd4 {[%emt 0:00:46]} Qxf4 {[%emt 0:00:08]} 34. Qe2 {[%emt 0:10:56]} e3 {[%emt 0:01:20]} 35. g3 {[%emt 0:00:22]} Rxb1+ {[%emt 0:02:09]} 36. Rxb1 {[%emt 0:00:14]} Qe4 {[%emt 0:00:15]} 0-1

[Event "II Cerrado Promocion FNA 2022"]
[Site "Pamplona"]
[Date "2022.01.03"]
[Round "3.2"]
[White "Minzer, Claudio Javier"]
[Black "Escartin Lacasa, Jose"]
[Result "1/2-1/2"]
[ECO "A11"]
[WhiteElo "2442"]
[BlackElo "2315"]
[Annotator "ChessBase"]
[PlyCount "82"]
[EventDate "2022.01.02"]
[EventType "tourn"]
[EventCountry "ESP"]
[SourceTitle "playchess.com"]
[Source "ChessBase"]
[SourceQuality "1"]
[TimeControl "5400+30"]

1. Nf3 {[%emt 0:01:04]} Nf6 {[%emt 0:00:08]} 2. g3 {[%emt 0:01:07]} d5 {[%emt 0:00:10]} 3. c4 {[%emt 0:01:05]} c6 {[%emt 0:00:23]} 4. Bg2 {[%emt 0:00:15]} Bf5 {[%emt 0:00:49]} 5. Qb3 {[%emt 0:00:38]} Qc8 {[%emt 0:01:43]} 6. O-O {[%emt 0:01:30]} e6 {[%emt 0:00:13]} 7. d3 {[%emt 0:01:12]} Nbd7 {[%emt 0:00:57]} 8. Nc3 {[%emt 0:02:31]} h6 {[%emt 0:00:40]} 9. Bf4 {[%emt 0:03:53]} Be7 {[%emt 0:02:09]} 10. cxd5 {[%emt 0:00:30]} exd5 {[%emt 0:00:04]} 11. Rac1 {[%emt 0:00:27]} Nc5 {[%emt 0:03:09]} 12. Qd1 {[%emt 0:03:54]} Ne6 {[%emt 0:00:42]} 13. Be5 {[%emt 0:05:27]} Qd8 {[%emt 0:00:31]} 14. Nd4 {[%emt 0:02:22]} Nxd4 {[%emt 0:01:24]} 15. Bxd4 {[%emt 0:00:02]} O-O {[%emt 0:00:32]} 16. e4 {[%emt 0:02:39]} dxe4 {[%emt 0:03:50]} 17. dxe4 {[%emt 0:00:09]} Bg4 {[%emt 0:00:16]} 18. f3 {[%emt 0:00:56]} Be6 {[%emt 0:02:01]} 19. f4 {[%emt 0:06:45]} Bg4 {[%emt 0:00:52]} 20. Bf3 {[%emt 0:00:22]} Bxf3 {[%emt 0:01:16]} 21. Rxf3 {[%emt 0:00:01]} Qa5 {[%emt 0:00:44]} 22. e5 {[%emt 0:11:14]} Rfd8 {[%emt 0:02:49]} 23. Rd3 {[%emt 0:05:53]} Nd5 {[%emt 0:00:31]} 24. e6 {[%emt 0:06:09]} Nxc3 {[%emt 0:05:54]} 25. exf7+ {[%emt 0:02:30]} Kxf7 {[%emt 0:00:03]} 26. Rcxc3 {[%emt 0:02:06]} Qxa2 {[%emt 0:00:35]} 27. Rb3 {[%emt 0:10:08]} b6 {[%emt 0:04:46]} 28. Be5 {[%emt 0:07:44]} Qa4 {[%emt 0:10:12]} 29. Qh5+ {[%emt 0:03:08]} Kg8 {[%emt 0:00:22]} 30. Qg6 {[%emt 0:00:13]} Bf8 {[%emt 0:00:24]} 31. Qe6+ {[%emt 0:05:08]} Kh7 {[%emt 0:00:10]} 32. Qf5+ {[%emt 0:00:09]} Kh8 {[%emt 0:00:28]} 33. Qg6 {[%emt 0:01:56]} Kg8 {[%emt 0:00:27]} 34. Qe6+ {[%emt 0:00:11]} Kh7 {[%emt 0:00:06]} 35. Qf5+ {[%emt 0:00:05]} Kh8 {[%emt 0:00:06]} 36. Qg6 {[%emt 0:00:08]} Kg8 {[%emt 0:00:09]} 37. Kf1 {[%emt 0:15:29]} Kh8 {[%emt 0:59:25]} 38. Kg1 Kg8 {[%emt 0:00:30]} 39. Rxd8 Rxd8 40. Rd3 {[%emt 0:01:30]} Kh8 {[%emt 0:01:00]} 41. Kf1 {[%emt 0:00:30]} Bc5 {[%emt 0:00:30]} 1/2-1/2

[Event "II Cerrado Promocion FNA 2022"]
[Site "Pamplona"]
[Date "2022.01.03"]
[Round "3.3"]
[White "Luque Saiz, Andres"]
[Black "Labiano Hernandez, Juan"]
[Result "1-0"]
[ECO "C54"]
[WhiteElo "2288"]
[BlackElo "2210"]
[Annotator "ChessBase"]
[PlyCount "129"]
[EventDate "2022.01.02"]
[EventType "tourn"]
[EventCountry "ESP"]
[SourceTitle "playchess.com"]
[Source "ChessBase"]
[SourceQuality "1"]
[TimeControl "5400+30"]

1. e4 e5 2. Nf3 Nc6 3. Bc4 Nf6 4. d3 Bc5 5. c3 d6 6. Nbd2 a5 {[%emt 1:33:30]} 7. O-O {[%emt 1:34:00]} O-O {[%emt 0:00:30]} 8. h3 {[%emt 0:00:30]} Be6 {[%emt 0:00:30]} 9. Bb5 {[%emt 0:00:30]} Ba7 {[%emt 0:00:30]} 10. Re1 {[%emt 0:00:30]} Ne7 {[%emt 0:00:30]} 11. d4 {[%emt 0:00:30]} c6 {[%emt 0:00:30]} 12. Bd3 {[%emt 0:00:30]} Ng6 {[%emt 0:00:30]} 13. Nf1 {[%emt 0:00:30]} h6 {[%emt 0:00:30]} 14. Ng3 {[%emt 0:00:30]} Qd7 {[%emt 0:00:30]} 15. Be3 {[%emt 0:00:30]} Bb8 {[%emt 0:00:30]} 16. Qd2 {[%emt 0:00:30]} Kh7 {[%emt 0:00:30]} 17. Bc2 {[%emt 0:00:30]} Bc7 {[%emt 0:00:30]} 18. b3 {[%emt 0:00:30]} Rad8 {[%emt 0:00:30]} 19. Rad1 {[%emt 0:00:30]} Qc8 {[%emt 0:00:30]} 20. c4 {[%emt 0:00:30]} Rfe8 {[%emt 0:00:30]} 21. Qc3 {[%emt 0:00:30]} Kg8 {[%emt 0:00:30]} 22. d5 {[%emt 0:00:30]} Bd7 {[%emt 0:00:30]} 23. Qd2 {[%emt 0:00:30]} Kh7 {[%emt 0:00:30]} 24. Bd3 {[%emt 0:00:30]} Qb8 {[%emt 0:00:30]} 25. Rb1 {[%emt 0:00:30]} cxd5 {[%emt 0:00:30]} 26. cxd5 {[%emt 0:00:30]} b5 {[%emt 0:00:30]} 27. b4 {[%emt 0:00:30]} a4 {[%emt 0:00:30]} 28. Rbc1 {[%emt 0:00:30]} Bb6 {[%emt 0:00:30]} 29. Rc2 {[%emt 0:00:30]} Rc8 {[%emt 0:00:30]} 30. Rec1 {[%emt 0:00:30]} Rxc2 {[%emt 0:00:30]} 31. Rxc2 {[%emt 0:00:30]} Bxe3 {[%emt 0:00:30]} 32. Qxe3 {[%emt 0:00:30]} Nf4 {[%emt 0:00:30]} 33. Bf1 {[%emt 0:00:30]} g5 {[%emt 0:00:30]} 34. Ne2 {[%emt 0:00:30]} Rg8 {[%emt 0:00:30]} 35. Nxf4 {[%emt 0:00:30]} gxf4 {[%emt 0:00:30]} 36. Qd3 {[%emt 0:00:30]} Bxh3 {[%emt 0:00:30]} 37. Nxe5 {[%emt 0:00:30]} Bxg2 {[%emt 0:00:30]} 38. Bxg2 {[%emt 0:00:30]} dxe5 {[%emt 0:00:30]} 39. Qh3 {[%emt 0:00:30]} Rg5 {[%emt 0:00:30]} 40. Kf1 {[%emt 0:00:30]} Qf8 {[%emt 0:00:30]} 41. a3 {[%emt 0:00:30]} Qg7 {[%emt 0:00:30]} 42. d6 {[%emt 0:00:30]} Qf8 {[%emt 0:00:30]} 43. Rd2 {[%emt 0:00:30]} Qd8 {[%emt 0:00:30]} 44. d7 {[%emt 0:00:30]} h5 {[%emt 0:00:30]} 45. Rd6 {[%emt 0:00:30]} Kg7 {[%emt 0:00:30]} 46. Qc3 {[%emt 0:00:30]} Nxd7 {[%emt 0:00:30]} 47. Bh3 {[%emt 0:00:30]} Qa8 {[%emt 0:00:30]} 48. Bxd7 {[%emt 0:00:30]} Qxe4 {[%emt 0:00:30]} 49. Bc6 {[%emt 0:00:30]} Qb1+ {[%emt 0:00:30]} 50. Ke2 {[%emt 0:00:30]} Qf5 {[%emt 0:00:30]} 51. Qd3 {[%emt 0:00:30]} Qg4+ {[%emt 0:00:30]} 52. Bf3 {[%emt 0:00:30]} Qc8 {[%emt 0:00:30]} 53. Rc6 {[%emt 0:00:30]} Qe8 {[%emt 0:00:30]} 54. Qxb5 {[%emt 0:00:30]} Qe7 {[%emt 0:00:30]} 55. Qc5 {[%emt 0:00:30]} Qxc5 {[%emt 0:00:30]} 56. Rxc5 {[%emt 0:00:30]} h4 {[%emt 0:00:30]} 57. b5 {[%emt 0:00:30]} h3 {[%emt 0:00:30]} 58. b6 {[%emt 0:00:30]} Rg1 {[%emt 0:00:30]} 59. b7 {[%emt 0:00:30]} Rb1 {[%emt 0:00:30]} 60. Rc8 {[%emt 0:00:30]} Rb2+ {[%emt 0:00:30]} 61. Kd3 {[%emt 0:00:30]} Rxf2 {[%emt 0:00:30]} 62. b8=Q {[%emt 0:00:30]} Rxf3+ {[%emt 0:00:30]} 63. Ke4 {[%emt 0:00:30]} Re3+ {[%emt 0:00:30]} 64. Kf5 {[%emt 0:00:30]} h2 {[%emt 0:00:30]} 65. Rg8+ {[%emt 0:00:30]} 1-0

[Event "II Cerrado Promocion FNA 2022"]
[Site "Pamplona"]
[Date "2022.01.03"]
[Round "3.4"]
[White "Garrido Outon, Alex"]
[Black "Alonso Bouza, Julio Javier"]
[Result "1-0"]
[ECO "C80"]
[WhiteElo "2412"]
[BlackElo "2396"]
[Annotator "ChessBase"]
[PlyCount "81"]
[EventDate "2022.01.02"]
[EventType "tourn"]
[EventCountry "ESP"]
[SourceTitle "playchess.com"]
[Source "ChessBase"]
[SourceQuality "1"]
[TimeControl "5400+30"]

1. e4 {[%emt 0:00:04]} e5 {[%emt 0:02:00]} 2. Nf3 {[%emt 0:00:13]} Nc6 {[%emt 0:00:07]} 3. Bb5 {[%emt 0:00:10]} a6 {[%emt 0:00:06]} 4. Ba4 {[%emt 0:00:07]} Nf6 {[%emt 0:00:13]} 5. O-O {[%emt 0:00:14]} Nxe4 {[%emt 0:00:07]} 6. d4 {[%emt 0:00:44]} exd4 {[%emt 0:00:09]} 7. Re1 {[%emt 0:03:47]} d5 {[%emt 0:00:28]} 8. Nxd4 {[%emt 0:00:57]} Bd6 {[%emt 0:00:11]} 9. Nxc6 {[%emt 0:00:51]} Bxh2+ {[%emt 0:00:19]} 10. Kh1 {[%emt 0:00:47]} Qh4 {[%emt 0:00:09]} 11. Rxe4+ {[%emt 0:00:10]} dxe4 {[%emt 0:00:06]} 12. Qd8+ {[%emt 0:00:10]} Qxd8 {[%emt 0:00:08]} 13. Nxd8+ {[%emt 0:00:04]} Kxd8 {[%emt 0:00:09]} 14. Kxh2 {[%emt 0:00:05]} Be6 {[%emt 0:00:14]} 15. Be3 {[%emt 0:09:44]} f5 {[%emt 0:00:48]} 16. Nd2 {[%emt 0:01:45]} Ke7 {[%emt 0:06:18]} 17. c3 {[%emt 0:06:32]} Rhd8 {[%emt 0:10:37]} 18. Bg5+ {[%emt 0:04:01]} Kf7 {[%emt 0:00:01]} 19. Bxd8 {[%emt 0:00:10]} Rxd8 {[%emt 0:00:02]} 20. Nf1 {[%emt 0:00:41]} Kf6 {[%emt 0:02:30]} 21. Bb3 {[%emt 0:16:28]} Bxb3 {[%emt 0:05:25]} 22. axb3 {[%emt 0:00:05]} h5 {[%emt 0:01:22]} 23. Re1 {[%emt 0:03:42]} g5 {[%emt 0:04:15]} 24. g3 {[%emt 0:05:39]} h4 {[%emt 0:00:38]} 25. gxh4 {[%emt 0:01:54]} Rh8 {[%emt 0:00:25]} 26. Ne3 {[%emt 0:06:17]} Rxh4+ {[%emt 0:03:53]} 27. Kg2 {[%emt 0:00:05]} f4 {[%emt 0:11:07]} 28. Nc2 {[%emt 0:11:27]} Rg4+ {[%emt 0:08:13]} 29. Kf1 {[%emt 0:00:35]} Rh4 {[%emt 0:03:04]} 30. Rxe4 {[%emt 0:01:33]} Rh1+ {[%emt 0:00:14]} 31. Kg2 {[%emt 0:01:35]} Rb1 {[%emt 0:01:10]} 32. b4 {[%emt 0:02:09]} Rxb2 {[%emt 0:00:49]} 33. Nd4 {[%emt 0:00:10]} a5 {[%emt 0:03:15]} 34. bxa5 {[%emt 0:01:34]} c5 {[%emt 0:01:00]} 35. Re6+ {[%emt 0:02:29]} Kf7 {[%emt 0:00:52]} 36. Re2 {[%emt 0:00:06]} Rxe2 {[%emt 0:02:19]} 37. Nxe2 {[%emt 0:00:05]} Ke6 {[%emt 0:00:43]} 38. c4 {[%emt 0:00:28]} Kf5 {[%emt 0:00:38]} 39. f3 {[%emt 0:00:14]} g4 {[%emt 0:00:32]} 40. Nc1 {[%emt 0:01:00]} Ke5 {[%emt 0:00:39]} 41. Nb3 {[%emt 0:22:09]} 1-0

[Event "II Cerrado Promocion FNA 2022"]
[Site "Pamplona"]
[Date "2022.01.03"]
[Round "3.5"]
[White "Urriza Iricibar, Pablo"]
[Black "Habans Aguerrea, Javier"]
[Result "0-1"]
[ECO "B15"]
[WhiteElo "2286"]
[BlackElo "2298"]
[Annotator "ChessBase"]
[PlyCount "60"]
[EventDate "2022.01.02"]
[EventType "tourn"]
[EventCountry "ESP"]
[SourceTitle "playchess.com"]
[Source "ChessBase"]
[SourceQuality "1"]
[TimeControl "5400+30"]

1. e4 {[%emt 0:00:03]} c6 {[%emt 0:00:10]} 2. d4 {[%emt 0:00:07]} d5 {[%emt 0:00:07]} 3. Nc3 {[%emt 0:00:17]} dxe4 4. Nxe4 {[%emt 0:00:08]} Nf6 {[%emt 0:00:26]} 5. Nxf6+ exf6 {[%emt 0:00:01]} 6. c3 {[%emt 0:00:26]} Bd6 {[%emt 0:00:16]} 7. Bd3 {[%emt 0:00:08]} O-O {[%emt 0:00:15]} 8. Qc2 {[%emt 0:00:14]} Re8+ {[%emt 0:00:16]} 9. Ne2 {[%emt 0:00:08]} h5 {[%emt 0:00:10]} 10. O-O {[%emt 0:00:07]} h4 {[%emt 0:00:37]} 11. h3 {[%emt 0:00:06]} Nd7 {[%emt 0:04:43]} 12. Be3 {[%emt 0:00:33]} Nf8 {[%emt 0:00:43]} 13. Rad1 {[%emt 0:03:14]} Be6 {[%emt 0:03:02]} 14. c4 {[%emt 0:03:07]} Qd7 {[%emt 0:01:03]} 15. Nf4 {[%emt 0:05:22]} Bxf4 {[%emt 0:00:26]} 16. Bxf4 {[%emt 0:00:05]} Ng6 {[%emt 0:05:02]} 17. Be3 {[%emt 0:29:52]} Ne7 {[%emt 0:01:35]} 18. Rfe1 {[%emt 0:10:34]} a6 {[%emt 0:02:26]} 19. Bh7+ {[%emt 0:02:34]} Kh8 {[%emt 0:03:27]} 20. Be4 {[%emt 0:03:17]} Rad8 {[%emt 0:11:07]} 21. Qe2 {[%emt 0:04:04]} g6 {[%emt 0:15:05]} 22. d5 {[%emt 0:12:07]} cxd5 {[%emt 0:00:09]} 23. Bd4 {[%emt 0:02:25]} Kg7 {[%emt 0:15:15]} 24. Qf3 {[%emt 0:07:04]} Bf5 {[%emt 0:00:45]} 25. Bxf5 {[%emt 0:08:24]} Nxf5 {[%emt 0:01:34]} 26. Bb6 {[%emt 0:01:03]} Rxe1+ {[%emt 0:04:19]} 27. Rxe1 {[%emt 0:00:01]} Re8 {[%emt 0:00:01]} 28. Rxe8 {[%emt 0:00:51]} Qxe8 {[%emt 0:00:02]} 29. Qxd5 {[%emt 0:00:25]} Qe1+ {[%emt 0:00:07]} 30. Kh2 {[%emt 0:00:08]} Ng3 {[%emt 0:00:24]} 0-1

[Event "II Cerrado Promocion FNA 2022"]
[Site "Pamplona"]
[Date "2022.01.05"]
[Round "5.4"]
[White "Urriza Iricibar, Pablo"]
[Black "Labiano Hernandez, Juan"]
[Result "1-0"]
[ECO "C45"]
[WhiteElo "2286"]
[BlackElo "2210"]
[Annotator "ChessBase"]
[PlyCount "81"]
[EventDate "2022.01.02"]
[EventType "tourn"]
[EventCountry "ESP"]
[SourceTitle "playchess.com"]
[Source "ChessBase"]
[SourceQuality "1"]
[TimeControl "5400+30"]

1. e4 e5 2. Nf3 Nc6 3. d4 exd4 4. Nxd4 Nf6 5. Nxc6 bxc6 6. e5 Qe7 7. Qe2 Nd5 8. h4 a5 9. c4 Ba6 10. g3 {[%emt 0:02:06]} Qe6 {[%emt 0:16:28]} 11. Nd2 {[%emt 0:00:30]} Bb4 {[%emt 0:00:30]} 12. Bh3 {[%emt 0:00:30]} Qe7 {[%emt 0:00:30]} 13. O-O {[%emt 0:00:30]} Nb6 {[%emt 0:00:30]} 14. b3 {[%emt 0:00:30]} O-O {[%emt 0:00:30]} 15. Ne4 {[%emt 0:00:30]} Rae8 {[%emt 0:00:30]} 16. Bb2 {[%emt 0:00:30]} d5 {[%emt 0:00:30]} 17. Nf6+ {[%emt 0:00:30]} Qxf6 {[%emt 0:00:30]} 18. a3 {[%emt 0:00:30]} Bc5 {[%emt 0:00:30]} 19. b4 {[%emt 0:00:30]} Nxc4 {[%emt 0:00:30]} 20. bxc5 {[%emt 0:00:30]} Nxb2 {[%emt 0:00:30]} 21. Qxa6 {[%emt 0:00:30]} Rxe5 {[%emt 0:00:30]} 22. Qxa5 {[%emt 0:00:30]} Qe7 {[%emt 0:00:30]} 23. a4 {[%emt 0:00:30]} Nc4 {[%emt 0:00:30]} 24. Qb4 {[%emt 0:00:30]} Re2 {[%emt 0:00:30]} 25. Rfe1 {[%emt 0:00:30]} Qf6 {[%emt 0:00:30]} 26. Rxe2 {[%emt 0:00:30]} Qxa1+ {[%emt 0:00:30]} 27. Re1 {[%emt 0:00:30]} Qb2 {[%emt 0:00:30]} 28. Qxb2 {[%emt 0:00:30]} Nxb2 {[%emt 0:00:30]} 29. a5 {[%emt 0:00:30]} Nc4 {[%emt 0:00:30]} 30. a6 {[%emt 0:00:30]} Ra8 {[%emt 0:00:30]} 31. a7 {[%emt 0:00:30]} f5 {[%emt 0:00:30]} 32. Ra1 {[%emt 0:00:30]} g6 {[%emt 0:00:30]} 33. g4 {[%emt 0:00:30]} Nd2 {[%emt 0:00:30]} 34. gxf5 {[%emt 0:00:30]} Nb3 {[%emt 0:00:30]} 35. Rb1 {[%emt 0:00:30]} Rxa7 {[%emt 0:00:30]} 36. Rxb3 {[%emt 0:00:30]} Ra4 {[%emt 0:00:30]} 37. f6 {[%emt 0:00:30]} Kf7 {[%emt 0:00:30]} 38. Rf3 {[%emt 0:00:30]} Re4 {[%emt 0:00:30]} 39. Bd7 {[%emt 0:00:30]} Rc4 {[%emt 0:00:30]} 40. Be6+ {[%emt 0:00:30]} Kf8 {[%emt 0:00:30]} 41. Ra3 {[%emt 0:00:30]} 1-0

[Event "II Cerrado Promocion FNA 2022"]
[Site "Pamplona"]
[Date "2022.01.05"]
[Round "5.5"]
[White "Habans Aguerrea, Javier"]
[Black "Alonso Bouza, Julio Javier"]
[Result "1/2-1/2"]
[ECO "B08"]
[WhiteElo "2298"]
[BlackElo "2396"]
[Annotator "ChessBase"]
[PlyCount "62"]
[EventDate "2022.01.02"]
[EventType "tourn"]
[EventCountry "ESP"]
[SourceTitle "playchess.com"]
[Source "ChessBase"]
[SourceQuality "1"]
[TimeControl "5400+30"]

1. d4 d6 2. e4 Nf6 3. Nc3 g6 4. Nf3 Bg7 5. Bc4 O-O 6. O-O Bg4 7. h3 Bxf3 8. Qxf3 Nc6 9. Ne2 e5 10. d5 Ne7 11. Nc3 Nd7 12. Qe2 {[%emt 0:04:32]} f5 {[%emt 0:09:24]} 13. exf5 {[%emt 0:00:30]} gxf5 {[%emt 0:00:30]} 14. Bg5 {[%emt 0:00:30]} Bf6 {[%emt 0:00:30]} 15. Bxf6 {[%emt 0:00:30]} Rxf6 {[%emt 0:00:30]} 16. f4 {[%emt 0:00:30]} Kh8 {[%emt 0:00:30]} 17. Bb5 {[%emt 0:00:30]} c6 {[%emt 0:00:30]} 18. dxc6 {[%emt 0:00:30]} bxc6 {[%emt 0:00:30]} 19. fxe5 {[%emt 0:00:30]} Nxe5 {[%emt 0:00:30]} 20. Bd3 {[%emt 0:00:30]} Qb6+ {[%emt 0:00:30]} 21. Kh1 {[%emt 0:00:30]} Qxb2 {[%emt 0:00:30]} 22. Qd2 {[%emt 0:00:30]} Qb7 {[%emt 0:00:30]} 23. Ne2 {[%emt 0:00:30]} c5 {[%emt 0:00:30]} 24. Rab1 {[%emt 0:00:30]} Qc6 {[%emt 0:00:30]} 25. Nf4 {[%emt 0:00:30]} Rg8 {[%emt 0:00:30]} 26. Bb5 {[%emt 0:00:30]} Qa8 {[%emt 0:00:30]} 27. Ba6 {[%emt 0:00:30]} Rb8 {[%emt 0:00:30]} 28. Nh5 {[%emt 0:00:30]} Rg6 {[%emt 0:00:30]} 29. Nf4 {[%emt 0:00:30]} Rf6 {[%emt 0:00:30]} 30. Nh5 {[%emt 0:00:30]} Rg6 {[%emt 0:00:30]} 31. Nf4 {[%emt 0:00:30]} Rf6 {[%emt 0:18:54]} 1/2-1/2